bitfinex/quotes_SOLUSD_20220118
["timestamp","ask_amount","ask_price","bid_price","bid_amount"]
[1642495815540,35.76502262,138.46,138.36,8.21833245]
[1642495815741,25.7915,138.45,138.37,10.8364]
[1642495816139,25.7915,138.45,138.37,11.0964]
[1642495816740,25.7915,138.45,138.38,0.25]
[1642495816941,25.7915,138.45,138.38,56.03842407]
[1642495817140,25.7915,138.45,138.38,10.8356]
[1642495817340,0.25,138.44,138.36,4.11379905]
[1642495817550,2.89,138.43,138.35,4.1045334]
[1642495817740,13.27,138.43,138.35,4.1045334]
[1642495817942,0.25,138.42,138.35,4.1045334]
[1642495818143,35.67920638,138.42,138.35,4.1045334]
[1642495818541,35.42920638,138.42,138.36,48.06436851]
[1642495818759,35.42920638,138.42,138.36,49.60144419]
[1642495819161,57.822,138.45,138.36,49.60144419]
[1642495819359,57.822,138.45,138.36,48.06436851]
[1642495819360,47.442,138.45,138.36,48.06436851]
[1642495819761,47.442,138.45,138.36,48.32436851]
[1642495820061,47.442,138.45,138.36,59.16146851]
[1642495820262,47.442,138.45,138.36,119.80436851]
[1642495820263,48.28854029,138.44,138.36,119.80436851]
[1642495821061,48.28854029,138.44,138.38,10.8355]
[1642495821263,51.17654029,138.44,138.39,0.25]
[1642495823064,51.17654029,138.44,138.38,11.0955]
[1642495823065,48.28854029,138.44,138.38,11.0955]
[1642495823266,51.17654029,138.44,138.38,11.0955]
[1642495824366,48.28854029,138.44,138.39,0.25]
[1642495824565,48.28854029,138.44,138.39,11.0846]
[1642495824765,48.28854029,138.44,138.4,0.25]
[1642495825770,0.25,138.43,138.37,0.25]
[1642495825968,27.5085,138.43,138.37,0.25]
[1642495826370,27.5085,138.43,138.34,28.2812334]
[1642495826568,27.5085,138.43,138.34,4.3645334]
[1642495826970,27.5085,138.43,138.34,0.26]
[1642495827468,27.5085,138.43,138.35,10.8371]
[1642495827872,27.5085,138.43,138.36,0.25]
[1642495828069,27.5085,138.43,138.32,4.1045334]
[1642495828273,10.38,138.42,138.32,4.1045334]
[1642495828471,2.89,138.41,138.32,4.1045334]
[1642495828671,10.38,138.4,138.32,4.1045334]
[1642495828871,3.141,138.39,138.32,4.1045334]
[1642495829169,46.92168171,138.38,138.32,4.1045334]
[1642495829371,3.141,138.37,138.32,4.1045334]
[1642495829572,3.141,138.37,138.29,4.1045334]
[1642495829770,26.0963,138.37,138.29,4.1045334]
[1642495829970,36.4763,138.37,138.29,4.1045334]
[1642495830271,36.4763,138.37,138.3,0.25]
[1642495831775,36.4763,138.37,138.3,38.92814067]
[1642495832174,36.4763,138.37,138.3,39.18814067]
[1642495832375,36.4763,138.37,138.3,50.02974067]
[1642495832678,33.3353,138.37,138.3,50.02974067]
[1642495833277,46.92168171,138.38,138.3,50.02974067]
[1642495833479,23.6919,138.4,138.3,51.56681635]
[1642495834077,2.891,138.42,138.3,51.56681635]
[1642495834278,4.1123846,138.43,138.3,61.94681635]
[1642495834481,38.05277371,138.42,138.3,61.94681635]
[1642495834679,38.30277371,138.42,138.34,10.8373]
[1642495834877,38.30277371,138.42,138.35,46.22476203]
[1642495835282,38.30277371,138.42,138.31,33.02781242]
[1642495835480,2.89,138.41,138.31,4.1045334]
[1642495835680,2.89,138.41,138.35,2.05758824]
[1642495835681,13.27,138.41,138.35,2.05758824]
[1642495835881,0.25,138.4,138.35,2.05758824]
[1642495836086,2.89,138.39,138.35,2.05758824]
[1642495836283,46.95902009,138.38,138.35,2.05758824]
[1642495836583,3.03219997,138.37,138.35,2.05758824]
[1642495836883,3.03219997,138.37,138.32,2.30758824]
[1642495837884,3.03219997,138.37,138.32,0.25]
[1642495838984,0.25,138.36,138.32,2.05758824]
[1642495839687,0.25,138.36,138.31,40.6232854]
[1642495839886,0.25,138.36,138.31,40.8732854]
[1642495840087,0.25,138.37,138.31,40.8732854]
[1642495843091,0.25,138.37,138.32,2.05758824]
[1642495845023,49.60002009,138.38,138.32,2.05758824]
[1642495845192,46.70902009,138.38,138.33,39.67601028]
[1642495845392,46.70902009,138.38,138.33,39.93601028]
[1642495845996,46.70902009,138.38,138.33,41.99359852]
[1642495846193,25.99522412,138.42,138.33,52.83269852]
[1642495846594,1.96712412,138.42,138.33,54.3697742]
[1642495846796,1.96712412,138.42,138.34,73.53758824]
[1642495846995,1.96712412,138.43,138.34,73.53758824]
[1642495847197,40.15492664,138.42,138.35,0.25]
[1642495847795,40.15492664,138.42,138.36,10.8356]
[1642495847998,40.15492664,138.42,138.37,43.09388758]
[1642495848197,40.15492664,138.42,138.37,43.34388758]
[1642495848397,40.15492664,138.42,138.37,43.60388758]
[1642495849195,40.15492664,138.42,138.37,2.56758824]
[1642495849597,40.15492664,138.42,138.38,10.8348]
[1642495849797,40.15492664,138.42,138.39,0.25]
[1642495849996,23.8513,138.45,138.4,3.03219997]
[1642495850398,23.8513,138.45,138.4,3.29219997]
[1642495851000,36.94019684,138.44,138.4,3.29219997]
[1642495851604,36.94019684,138.44,138.4,3.03219997]
[1642495851802,3.138,138.43,138.37,2.05758824]
[1642495852200,4.92705272,138.43,138.37,2.05758824]
[1642495852401,15.30705272,138.43,138.37,2.05758824]
[1642495853002,13.518,138.43,138.37,2.05758824]
[1642495853203,1.96712412,138.42,138.34,2.05758824]
[1642495853400,37.17784667,138.41,138.34,2.31758824]
[1642495853600,37.17784667,138.41,138.35,0.25]
[1642495854204,36.92784667,138.41,138.35,0.25]
[1642495854602,36.92784667,138.41,138.35,11.0876]
[1642495855103,36.92784667,138.41,138.35,11.3476]
[1642495855303,36.92784667,138.41,138.35,13.40518824]
[1642495856004,36.92784667,138.41,138.35,2.56758824]
[1642495856808,0.25,138.4,138.35,2.56758824]
[1642495857004,3.14,138.4,138.35,0.51]
[1642495857407,3.14,138.4,138.35,0.25]
[1642495857604,2.89,138.4,138.35,0.25]
[1642495858007,2.89,138.4,138.34,2.31758824]
[1642495858008,0.25,138.39,138.34,2.05758824]
[1642495858205,2.89,138.38,138.34,2.05758824]
[1642495858405,0.25,138.37,138.34,2.05758824]
[1642495858606,8.95539994,138.36,138.34,2.05758824]
[1642495858825,0.25,138.35,138.34,2.05758824]
[1642495859008,37.13622924,138.35,138.34,2.05758824]
[1642495859309,37.13622924,138.35,138.31,4.1045334]
[1642495860036,37.13622924,138.35,138.32,2.05803799]
[1642495860236,6.06439994,138.34,138.32,2.05803799]
[1642495861036,6.06439994,138.34,138.33,0.25]
[1642495861839,6.06439994,138.34,138.27,0.25]
[1642495862038,6.06439994,138.34,138.27,11.0929]
[1642495862238,6.06439994,138.34,138.27,10.8429]
[1642495862437,6.06439994,138.34,138.27,0.26]
[1642495862638,6.06439994,138.34,138.28,4.1045334]
[1642495862838,6.06439994,138.34,138.28,4.3645334]
[1642495863639,6.06439994,138.34,138.29,0.25]
[1642495863844,6.06439994,138.34,138.27,0.25]
[1642495864743,6.06439994,138.34,138.27,4.3545334]
[1642495865140,6.06439994,138.34,138.27,4.6145334]
[1642495865540,6.06439994,138.34,138.27,0.51]
[1642495865941,6.06439994,138.34,138.26,15.2083334]
[1642495866143,8.95639994,138.34,138.26,15.2083334]
[1642495866946,8.95639994,138.34,138.26,56.65471274]
[1642495867144,8.95639994,138.34,138.27,4.11673243]
[1642495867344,6.06439994,138.34,138.27,15.47013243]
[1642495867545,6.06439994,138.34,138.27,15.21013243]
[1642495867745,0.25,138.33,138.27,15.21013243]
[1642495868147,0.25,138.33,138.27,21.21013243]
[1642495868749,0.25,138.33,138.27,17.3534]
[1642495868948,36.88622924,138.35,138.27,17.3534]
[1642495869652,36.88622924,138.35,138.28,4.11650349]
[1642495869850,36.88622924,138.35,138.29,54.05888362]
[1642495870250,36.88622924,138.35,138.29,131.79888362]
[1642495871279,36.88622924,138.35,138.29,60.31888362]
[1642495874158,36.88622924,138.35,138.29,17.0919]
[1642495874358,36.88622924,138.35,138.29,6.25]
[1642495874759,36.88622924,138.35,138.29,0.25]
[1642495874959,2.891,138.34,138.29,0.25]
[1642495876360,2.891,138.34,138.28,0.25]
[1642495876959,2.891,138.34,138.28,11.0929]
[1642495877160,2.891,138.34,138.28,0.25]
[1642495877363,2.891,138.34,138.28,6.25]
[1642495877661,36.88622924,138.35,138.28,6.0]
[1642495877860,36.88622924,138.35,138.29,0.25]
[1642495878890,36.88622924,138.35,138.27,0.25]
[1642495879894,0.25,138.34,138.27,0.25]
[1642495880093,2.892,138.33,138.27,0.25]
[1642495880292,2.892,138.33,138.28,4.11651707]
[1642495880895,36.09266899,138.32,138.28,4.11651707]
[1642495881194,2.892,138.31,138.26,4.1045334]
[1642495881394,0.25,138.3,138.23,6.17539117]
[1642495881596,2.892,138.29,138.25,4.1171148]
[1642495881794,0.25,138.28,138.25,10.1171148]
[1642495881995,8.95639994,138.27,138.25,10.1171148]
[1642495882402,8.95639994,138.27,138.25,4.1171148]
[1642495882799,8.95639994,138.27,138.18,23.3858]
[1642495883002,6.06439994,138.27,138.22,6.0]
[1642495883196,6.06439994,138.27,138.22,48.66297226]
[1642495883397,6.06439994,138.27,138.23,0.25]
[1642495883598,2.892,138.32,138.23,0.25]
[1642495883800,10.38,138.33,138.23,0.25]
[1642495883998,0.25,138.31,138.23,0.25]
[1642495884200,2.892,138.3,138.23,0.25]
[1642495884400,40.90088353,138.29,138.23,0.25]
[1642495884605,2.892,138.31,138.23,0.25]
[1642495884801,27.0669,138.32,138.23,0.25]
[1642495885504,48.90005022,138.31,138.23,11.0963]
[1642495885906,48.90005022,138.31,138.23,17.0963]
[1642495886303,0.25,138.3,138.23,0.25]
[1642495886504,26.8527,138.3,138.23,0.25]
[1642495886705,10.85,138.29,138.19,10.85]
[1642495886903,3.142,138.28,138.2,0.25]
[1642495887102,26.2811,138.28,138.2,0.25]
[1642495887502,40.11102797,138.27,138.2,36.78010174]
[1642495887904,40.11102797,138.27,138.2,43.04010174]
[1642495888103,0.25,138.26,138.2,6.0]
[1642495888305,3.142,138.26,138.17,23.02639117]
[1642495888505,2.892,138.26,138.18,0.25]
[1642495888704,43.00302797,138.27,138.18,0.25]
[1642495888903,40.11102797,138.27,138.18,0.25]
[1642495889103,40.11102797,138.27,138.18,49.28391604]
[1642495889305,40.11102797,138.27,138.18,66.13481604]
[1642495890103,40.11102797,138.27,138.18,66.39481604]
[1642495891308,40.11102797,138.27,138.18,137.87481604]
[1642495891506,23.1391,138.28,138.18,137.87481604]
[1642495891706,2.892,138.3,138.18,139.416224]
[1642495891907,10.38,138.33,138.22,10.8451]
[1642495892108,10.38,138.33,138.22,17.8431]
[1642495892308,10.38,138.33,138.23,0.25]
[1642495892607,39.3455211,138.32,138.23,36.60392542]
[1642495892810,39.3455211,138.32,138.24,1.54140796]
[1642495893007,39.3455211,138.32,138.24,10.8455]
[1642495893207,2.892,138.31,138.25,0.25]
[1642495893409,3.142,138.31,138.25,0.25]
[1642495893909,27.0053,138.31,138.25,0.25]
[1642495894310,27.0053,138.31,138.23,6.0]
[1642495894510,27.0053,138.31,138.23,16.847]
[1642495894712,27.0053,138.31,138.24,0.25]
[1642495894909,27.0053,138.31,138.23,17.107]
[1642495895110,27.0053,138.31,138.23,16.847]
[1642495895312,27.0053,138.31,138.24,0.25]
[1642495895511,27.0053,138.31,138.23,6.0]
[1642495895712,27.0053,138.31,138.22,48.73515208]
[1642495895911,27.0053,138.31,138.22,48.99515208]
[1642495896111,27.0053,138.31,138.22,48.73515208]
[1642495896512,37.8534,138.31,138.22,48.73515208]
[1642495897813,37.8534,138.31,138.23,0.25]
[1642495898012,27.0053,138.31,138.23,0.25]
[1642495898911,1.78905272,138.3,138.22,6.0]
[1642495899112,10.8508,138.28,138.22,6.0]
[1642495899413,0.25,138.27,138.18,33.40579117]
[1642495899611,23.0411,138.27,138.19,0.25]
[1642495899811,47.07733081,138.26,138.19,37.44075387]
[1642495900212,47.07733081,138.26,138.19,6.25]
[1642495900416,0.25,138.25,138.19,6.25]
[1642495900814,49.96933081,138.26,138.19,6.25]
[1642495901214,0.25,138.25,138.19,6.25]
[1642495901413,49.96933081,138.26,138.19,6.25]
[1642495901613,49.96933081,138.26,138.19,0.25]
[1642495901813,49.96933081,138.26,138.19,6.0]
[1642495902014,47.07733081,138.26,138.19,6.0]
[1642495902213,47.07733081,138.26,138.2,0.25]
[1642495902416,10.8529,138.25,138.2,0.25]
[1642495903215,47.07733081,138.26,138.2,0.25]
[1642495903417,57.92923081,138.26,138.18,0.25]
[1642495904317,0.25,138.25,138.18,0.25]
[1642495904518,3.144,138.25,138.18,0.25]
[1642495905119,26.0055,138.25,138.18,0.25]
[1642495905625,26.0055,138.25,138.17,0.25]
[1642495906021,36.8583,138.25,138.17,0.25]
[1642495906220,36.8583,138.25,138.17,48.66780011]
[1642495906621,36.8583,138.25,138.17,54.66780011]
[1642495907221,26.0055,138.25,138.17,54.66780011]
[1642495908827,26.0055,138.25,138.17,65.51970011]
[1642495909024,25.7555,138.25,138.17,65.51970011]
[1642495909226,25.7555,138.25,138.17,67.32110807]
[1642495910125,22.8615,138.25,138.17,67.32110807]
[1642495910625,47.07733081,138.26,138.17,67.32110807]
[1642495911026,47.07733081,138.26,138.17,65.77970011]
[1642495911428,22.8923,138.27,138.17,71.25370011]
[1642495911628,22.8923,138.27,138.17,81.63370011]
[1642495912029,22.8923,138.27,138.18,71.48]
[1642495912228,22.8923,138.27,138.19,10.38]
[1642495912435,67.94321855,138.27,138.21,10.8482]
[1642495912853,22.8923,138.27,138.22,0.25]
[1642495913253,2.894,138.29,138.22,8.763]
[1642495913652,2.894,138.29,138.22,15.023]
[1642495913853,40.80782015,138.29,138.24,10.8458]
[1642495914058,37.91382015,138.29,138.24,10.8458]
[1642495914254,37.91382015,138.29,138.24,16.8458]
[1642495914654,0.25,138.28,138.24,6.0]
[1642495914855,0.25,138.28,138.2,6.0]
[1642495915055,2.892,138.27,138.21,0.25]
[1642495915258,0.25,138.26,138.21,0.25]
[1642495915657,46.01678767,138.26,138.21,0.25]
[1642495915858,45.76678767,138.26,138.21,0.25]
[1642495916259,45.76678767,138.26,138.2,0.25]
[1642495919864,48.65878767,138.26,138.2,0.25]
[1642495921268,45.76678767,138.26,138.2,0.25]
[1642495921663,45.76678767,138.26,138.19,62.77105304]
[1642495922869,45.76678767,138.26,138.2,0.25]
[1642495924170,45.76678767,138.26,138.19,51.92085304]
[1642495924769,45.76678767,138.26,138.19,52.18085304]
[1642495924971,45.76678767,138.26,138.19,63.03115304]
[1642495925572,45.76678767,138.26,138.2,0.25]
[1642495925774,23.6394,138.27,138.2,0.25]
[1642495925972,23.6394,138.27,138.2,7.662]
[1642495926273,23.9806,138.3,138.2,24.7709]
[1642495926474,23.9806,138.3,138.2,96.2509]
[1642495926671,26.5283,138.32,138.2,106.6309]
[1642495926873,23.6363,138.32,138.2,132.90753378]
[1642495927774,1.48547688,138.33,138.2,132.90753378]
[1642495927975,2.892,138.35,138.21,12.1490954]
[1642495928177,22.7988,138.36,138.25,10.8405]
[1642495928376,2.892,138.4,138.26,10.63]
[1642495928577,41.24242402,138.39,138.27,35.70545118]
[1642495928777,41.24242402,138.39,138.28,0.25]
[1642495929082,41.24242402,138.39,138.28,7.046]
[1642495929279,65.78902402,138.39,138.28,13.306]
[1642495929479,65.78902402,138.39,138.3,10.8399]
[1642495929780,3.141,138.38,138.31,0.25]
[1642495930182,3.141,138.38,138.23,6.17539117]
[1642495930384,3.141,138.38,138.24,10.63]
[1642495930385,48.94495272,138.37,138.24,10.63]
[1642495930682,2.892,138.36,138.24,10.63]
[1642495930884,3.142,138.36,138.24,16.89]
[1642495931085,43.90760478,138.35,138.25,36.42474351]
[1642495931307,43.90760478,138.35,138.26,0.25]
[1642495931503,43.90760478,138.35,138.29,51.39864902]
[1642495931712,2.891,138.34,138.29,51.39864902]
[1642495931906,2.891,138.34,138.26,36.3901]
[1642495931907,2.891,138.34,138.26,0.25]
[1642495932109,0.25,138.33,138.26,6.51]
[1642495932307,2.892,138.32,138.26,6.51]
[1642495932709,2.892,138.32,138.26,0.51]
[1642495932914,38.80770551,138.31,138.25,64.50913432]
[1642495933114,2.892,138.3,138.25,54.12913432]
[1642495933314,0.25,138.29,138.25,54.12913432]
[1642495933511,2.892,138.28,138.25,6.0]
[1642495933712,6.06439994,138.27,138.25,6.0]
[1642495933911,6.06439994,138.27,138.2,16.38]
[1642495934111,6.06439994,138.27,138.21,0.25]
[1642495934314,6.06439994,138.27,138.2,27.2287]
[1642495934513,42.40361936,138.26,138.21,37.80489841]
[1642495934816,42.40361936,138.26,138.21,43.80489841]
[1642495935414,42.40361936,138.26,138.21,37.80489841]
[1642495935715,42.40361936,138.26,138.18,10.8501]
[1642495935915,42.40361936,138.26,138.18,11.1001]
[1642495936118,42.40361936,138.26,138.18,11.3601]
[1642495936713,42.40361936,138.26,138.19,40.48976014]
[1642495936916,42.40361936,138.26,138.2,0.25]
[1642495937115,3.142,138.26,138.2,0.25]
[1642495937316,3.142,138.26,138.19,46.48976014]
[1642495937716,3.142,138.26,138.19,40.48976014]
[1642495937918,3.142,138.26,138.19,51.33976014]
[1642495938115,2.892,138.26,138.19,51.33976014]
[1642495938316,2.892,138.28,138.19,61.71976014]
[1642495938515,47.8811,138.3,138.19,63.52878107]
[1642495938715,47.8811,138.3,138.2,0.25]
[1642495938917,53.8811,138.3,138.23,10.8464]
[1642495939316,89.59852928,138.3,138.24,48.08663567]
[1642495939520,2.892,138.29,138.24,48.08663567]
[1642495939717,2.892,138.32,138.25,0.25]
[1642495940415,37.26520295,138.31,138.25,0.25]
[1642495942321,37.26520295,138.31,138.21,0.25]
[1642495942555,37.26520295,138.31,138.21,11.0977]
[1642495942725,37.26520295,138.31,138.21,57.34489314]
[1642495942922,37.26520295,138.31,138.21,63.60489314]
[1642495944124,0.25,138.3,138.21,63.60489314]
[1642495944324,43.15267787,138.28,138.21,63.60489314]
[1642495945525,43.15267787,138.28,138.21,52.75719314]
[1642495948430,43.15267787,138.28,138.21,63.60559314]
[1642495949432,2.892,138.29,138.21,63.60559314]
[1642495949633,2.892,138.31,138.21,63.60559314]
[1642495950066,2.892,138.31,138.21,65.15247175]
[1642495950565,23.0952,138.32,138.25,10.8446]
[1642495950764,1.55747253,138.33,138.26,0.25]
[1642495951565,1.55747253,138.33,138.29,47.59142219]
[1642495951768,1.55747253,138.33,138.3,0.25]
[1642495953064,23.3714,138.37,138.3,0.25]
[1642495953265,29.3714,138.37,138.3,0.25]
[1642495954264,2.891,138.36,138.29,6.0]
[1642495954464,8.891,138.36,138.26,6.0]
[1642495954665,10.63,138.35,138.21,59.1998]
[1642495954866,2.892,138.34,138.22,6.43539117]
[1642495955268,47.57064512,138.33,138.23,43.79317173]
[1642495955465,2.892,138.32,138.23,43.79317173]
[1642495955671,2.892,138.32,138.23,50.05317173]
[1642495955966,2.892,138.32,138.24,0.25]
[1642495957167,0.25,138.31,138.23,16.8468]
[1642495957367,2.892,138.3,138.23,6.0]
[1642495957870,0.25,138.29,138.2,6.0]
[1642495958067,47.65694253,138.27,138.21,0.25]
[1642495958267,2.892,138.26,138.21,0.25]
[1642495958468,47.65694253,138.27,138.21,0.25]
[1642495958868,47.65694253,138.27,138.21,10.8484]
[1642495959267,47.65694253,138.27,138.21,17.1084]
[1642495960268,47.65694253,138.27,138.22,0.25]
[1642495962371,47.749,138.3,138.22,11.0976]
[1642495962570,47.749,138.3,138.22,23.02447861]
[1642495962773,47.749,138.3,138.22,29.02447861]
[1642495963271,2.892,138.32,138.22,29.28447861]
[1642495963471,2.892,138.33,138.23,110.70451203]
[1642495963672,41.06607025,138.34,138.26,10.843]
[1642495963973,41.06607025,138.34,138.27,42.68060081]
[1642495964172,3.142,138.33,138.27,42.68060081]
[1642495964471,3.142,138.33,138.27,0.25]
[1642495965071,2.892,138.33,138.25,11.0953]
[1642495965274,2.892,138.33,138.25,17.3553]
[1642495965472,2.892,138.33,138.26,35.32581681]
[1642495965873,2.892,138.33,138.27,0.25]
[1642495967073,41.06607025,138.34,138.27,0.25]
[1642495967574,41.06607025,138.34,138.27,11.0937]
[1642495967775,41.06607025,138.34,138.27,17.3537]
[1642495967776,1.5481601,138.34,138.27,17.3537]
[1642495968876,44.12363588,138.33,138.27,17.3537]
[1642495971375,44.12363588,138.33,138.27,17.0937]
[1642495972276,47.01563588,138.33,138.27,11.0937]
[1642495974281,44.12363588,138.33,138.27,11.0937]
[1642495974481,44.12363588,138.33,138.26,46.17041681]
[1642495974681,3.142,138.32,138.22,26.6318789]
[1642495974881,26.1578,138.32,138.25,0.25]
[1642495975084,25.9078,138.32,138.25,0.25]
[1642495975885,25.9078,138.32,138.24,0.25]
[1642495976087,25.9078,138.32,138.23,42.93550478]
[1642495976323,0.25,138.31,138.23,6.26]
[1642495976520,2.892,138.3,138.21,10.1168789]
[1642495976721,2.892,138.3,138.21,4.1168789]
[1642495976920,0.25,138.29,138.21,10.1168789]
[1642495977320,2.892,138.28,138.21,10.1168789]
[1642495978223,2.892,138.28,138.22,40.63443147]
[1642495978422,48.02851103,138.29,138.22,40.63443147]
[1642495978624,2.892,138.28,138.22,46.63443147]
[1642495978822,0.25,138.27,138.22,46.63443147]
[1642495979024,2.892,138.28,138.22,46.63443147]
[1642495980223,2.892,138.28,138.22,6.0]
[1642495980423,2.892,138.28,138.2,16.8492]
[1642495980726,2.892,138.28,138.22,2.05915796]
[1642495981126,2.892,138.28,138.22,8.05915796]
[1642495981326,0.25,138.27,138.22,8.05915796]
[1642495982226,2.892,138.28,138.22,8.05915796]
[1642495982625,2.892,138.28,138.23,48.57109145]
[1642495982826,36.92881103,138.29,138.23,48.32109145]
[1642495983029,2.892,138.28,138.22,6.0]
[1642495983227,3.142,138.28,138.22,2.05915796]
[1642495983427,0.25,138.28,138.23,0.25]
[1642495984227,39.82081103,138.29,138.23,0.25]
[1642495985130,2.892,138.29,138.23,0.25]
[1642495985630,24.4028,138.3,138.23,0.25]
[1642495986133,24.4028,138.3,138.23,11.0969]
[1642495986337,2.00040374,138.31,138.23,17.3569]
[1642495986533,24.0498,138.32,138.24,2.05915796]
[1642495986735,24.0498,138.32,138.25,49.09871112]
[1642495986932,30.0498,138.32,138.25,49.34871112]
[1642495987137,30.0498,138.32,138.25,55.60871112]
[1642495987563,30.0498,138.32,138.25,66.19351112]
[1642495988036,30.0498,138.32,138.25,66.45351112]
[1642495988536,30.0498,138.32,138.25,68.51266908]
[1642495992238,2.00040374,138.33,138.25,68.51266908]
[1642495992438,2.00040374,138.33,138.25,139.99266908]
[1642495993138,2.00040374,138.33,138.25,151.92143643]
[1642495993741,2.00040374,138.33,138.28,2.05915796]
[1642495993938,2.00040374,138.36,138.3,10.8392]
[1642495994343,2.00040374,138.36,138.31,0.25]
[1642495994539,2.00040374,138.36,138.31,44.1330007]
[1642495994941,2.00040374,138.36,138.31,60.7730007]
[1642495995240,2.00040374,138.38,138.31,60.7730007]
[1642495996343,2.00040374,138.38,138.32,10.8382]
[1642495996743,2.00040374,138.38,138.33,0.25]
[1642495996945,2.00040374,138.39,138.33,0.25]
[1642495997343,2.00040374,138.39,138.34,10.8366]
[1642495997545,2.00040374,138.39,138.35,37.6280774]
[1642495997745,2.00040374,138.39,138.35,37.8780774]
[1642495998045,2.00040374,138.39,138.35,6.25]
[1642495998645,2.00040374,138.39,138.35,0.25]
[1642495998846,2.00040374,138.39,138.34,0.25]
[1642495999046,2.00040374,138.39,138.34,43.83578522]
[1642495999346,2.00040374,138.39,138.34,50.09578522]
[1642495999549,2.00040374,138.39,138.34,60.67408522]
[1642496000248,4.89140374,138.4,138.34,60.67408522]
[1642496000749,0.25,138.39,138.34,16.8383]
[1642496001048,2.89,138.38,138.34,6.0]
[1642496001248,2.89,138.38,138.34,0.26]
[1642496001748,49.82668541,138.38,138.33,49.02372269]
[1642496001949,48.93708915,138.38,138.32,0.25]
[1642496002252,0.25,138.37,138.3,2.05915796]
[1642496002448,2.891,138.36,138.3,2.05915796]
[1642496002875,40.98864864,138.35,138.28,51.02446895]
[1642496003075,2.891,138.34,138.28,51.27446895]
[1642496003275,2.891,138.34,138.28,57.27446895]
[1642496003476,2.891,138.34,138.28,57.53446895]
[1642496003679,2.891,138.34,138.28,57.28446895]
[1642496003877,2.891,138.34,138.28,55.22531099]
[1642496005079,2.891,138.34,138.29,0.25]
[1642496006782,2.891,138.34,138.29,11.0923]
[1642496007682,42.98905238,138.35,138.29,11.0923]
[1642496007881,42.98905238,138.35,138.28,59.80841099]
[1642496008080,42.98905238,138.35,138.28,48.96531099]
[1642496008081,2.891,138.34,138.28,48.96531099]
[1642496008281,0.25,138.33,138.27,2.05915796]
[1642496008480,0.25,138.33,138.27,6.0]
[1642496008681,2.891,138.34,138.27,0.26]
[1642496008882,2.891,138.34,138.28,0.25]
[1642496009083,42.73905238,138.35,138.28,11.0929]
[1642496009284,2.00040374,138.34,138.29,47.6111056]
[1642496009688,2.00040374,138.34,138.29,53.6111056]
[1642496010191,2.00040374,138.35,138.29,53.6111056]
[1642496010588,2.00040374,138.35,138.29,64.4534056]
[1642496010789,2.00040374,138.35,138.3,0.25]
[1642496011587,37.91880888,138.34,138.29,53.8711056]
[1642496011791,38.16880888,138.34,138.29,6.0]
[1642496012187,2.891,138.33,138.28,2.05915796]
[1642496012789,37.91880888,138.34,138.29,41.49512999]
[1642496012988,4.89240374,138.35,138.29,41.49512999]
[1642496013289,2.00040374,138.35,138.29,41.49512999]
[1642496013788,2.00040374,138.35,138.29,47.75512999]
[1642496013988,48.30869725,138.35,138.29,47.75512999]
[1642496014389,0.25,138.34,138.29,6.0]
[1642496014588,2.891,138.33,138.27,8.05915796]
[1642496014790,0.25,138.32,138.27,8.05915796]
[1642496014991,2.892,138.31,138.27,8.05915796]
[1642496015390,44.76365462,138.31,138.27,8.05915796]
[1642496015993,44.76365462,138.31,138.27,6.0]
[1642496016393,41.87165462,138.31,138.26,47.06179087]
[1642496016591,2.892,138.33,138.27,0.25]
[1642496016991,0.25,138.32,138.27,0.25]
[1642496017490,39.02218769,138.32,138.27,0.25]
[1642496017893,41.02259143,138.32,138.27,0.25]
[1642496018792,2.00040374,138.32,138.26,52.16649087]
[1642496019191,0.25,138.31,138.26,52.16649087]